[Event "*** Titled Tuesday Blitz"]
[Site "Chess.com"]
[Date "2019.02.05"]
[Round "2"]
[White "Farrukh_Amonatov"]
[Black "Maikrosoft63"]
[Result "1/2-1/2"]
[WhiteElo "2817"]
[BlackElo "2569"]
[TimeControl "180+2"]
[EndTime "13:19:09 PST"]
[Termination "Game drawn by agreement"]

1. e4 {[%clk 0:03:01.9]} 1... c5 {[%clk 0:02:59.9]} 2. Nf3 {[%clk 0:03:02.8]}
2... Nc6 {[%clk 0:03:00.8]} 3. Bb5 {[%clk 0:03:02.1]} 3... d6 {[%clk 0:03:01]}
4. Bxc6+ {[%clk 0:03:02.1]} 4... bxc6 {[%clk 0:03:01.3]} 5. O-O {[%clk
0:03:02.7]} 5... e5 {[%clk 0:03:02.7]} 6. h3 {[%clk 0:03:02.8]} 6... Nf6 {[%clk
0:03:03.6]} 7. d3 {[%clk 0:03:04.3]} 7... Be7 {[%clk 0:03:04.6]} 8. Nbd2 {[%clk
0:03:04.2]} 8... O-O {[%clk 0:03:05.9]} 9. a3 {[%clk 0:03:03.7]} 9... Be6 {[%clk
0:03:05.3]} 10. b4 {[%clk 0:03:04.2]} 10... cxb4 {[%clk 0:03:04.5]} 11. axb4
{[%clk 0:03:05.7]} 11... a5 {[%clk 0:03:06]} 12. bxa5 {[%clk 0:03:03.7]} 12...
Rxa5 {[%clk 0:03:07.9]} 13. Bb2 {[%clk 0:03:03.3]} 13... Qb6 {[%clk 0:03:01.1]}
14. Rxa5 {[%clk 0:03:01.5]} 14... Qxa5 {[%clk 0:03:02.2]} 15. Qa1 {[%clk
0:03:02.9]} 15... Ra8 {[%clk 0:03:02]} 16. Qxa5 {[%clk 0:03:02.4]} 16... Rxa5
{[%clk 0:03:03.9]} 17. Ra1 {[%clk 0:03:03.9]} 17... Rxa1+ {[%clk 0:03:04.6]} 18.
Bxa1 {[%clk 0:03:05.5]} 18... h6 {[%clk 0:03:03]} 19. Kf1 {[%clk 0:03:04.7]}
19... Kf8 {[%clk 0:03:03.7]} 20. Ke2 {[%clk 0:03:04.8]} 20... Ke8 {[%clk
0:03:03.6]} 21. Nf1 {[%clk 0:03:05.3]} 21... g6 {[%clk 0:02:51.9]} 22. Ne3
{[%clk 0:03:06.1]} 22... Nh5 {[%clk 0:02:51.3]} 23. Kf1 {[%clk 0:03:04.9]} 23...
f5 {[%clk 0:02:50.7]} 24. Nd2 {[%clk 0:02:58.4]} 24... f4 {[%clk 0:02:47.4]} 25.
Nec4 {[%clk 0:02:55.1]} 25... Kd7 {[%clk 0:02:44.3]} 26. d4 {[%clk 0:02:47.6]}
26... exd4 {[%clk 0:02:41]} 27. Bxd4 {[%clk 0:02:49.1]} 27... Bf6 {[%clk
0:02:41.3]} 28. Bxf6 {[%clk 0:02:49]} 28... Nxf6 {[%clk 0:02:43.2]} 29. e5
{[%clk 0:02:45.9]} 29... Ne4 {[%clk 0:02:31]} 30. exd6 {[%clk 0:02:40.2]} 30...
Nxd2+ {[%clk 0:02:28.6]} 31. Nxd2 {[%clk 0:02:40.5]} 31... Kxd6 {[%clk
0:02:30.2]} 32. Ke2 {[%clk 0:02:42.3]} 32... g5 {[%clk 0:02:25.2]} 33. c3 {[%clk
0:02:40.8]} 33... c5 {[%clk 0:02:24]} 34. Kd3 {[%clk 0:02:41.2]} 34... Bd5
{[%clk 0:02:14.3]} 35. g3 {[%clk 0:02:37.9]} 35... Ke5 {[%clk 0:02:11.8]} 36. h4
{[%clk 0:02:30.6]} 36... fxg3 {[%clk 0:02:07.3]} 37. fxg3 {[%clk 0:02:31.7]}
37... gxh4 {[%clk 0:02:08.7]} 38. gxh4 {[%clk 0:02:33.3]} 38... Kf4 {[%clk
0:02:05.9]} 39. c4 {[%clk 0:02:34.6]} 39... Bxc4+ {[%clk 0:02:01]} 1/2-1/2

[Event "*** Titled Tuesday Blitz"]
[Site "Chess.com"]
[Date "2019.02.05"]
[Round "2"]
[White "AttilaTurzo"]
[Black "RiskyDecision"]
[Result "0-1"]
[WhiteElo "2376"]
[BlackElo "2422"]
[TimeControl "180+2"]
[EndTime "13:19:12 PST"]
[Termination "RiskyDecision won by resignation"]

1. d4 {[%clk 0:03:01.9]} 1... Nf6 {[%clk 0:02:57.8]} 2. Nf3 {[%clk 0:03:02.4]}
2... d5 {[%clk 0:02:56.6]} 3. Bf4 {[%clk 0:03:02.2]} 3... c5 {[%clk 0:02:55.4]}
4. e3 {[%clk 0:03:03.5]} 4... Nc6 {[%clk 0:02:53.3]} 5. Nbd2 {[%clk 0:03:04.7]}
5... e6 {[%clk 0:02:47.9]} 6. c3 {[%clk 0:03:04.5]} 6... Bd6 {[%clk 0:02:47.8]}
7. Bg3 {[%clk 0:03:05.5]} 7... O-O {[%clk 0:02:42.2]} 8. Bd3 {[%clk 0:03:06.5]}
8... b6 {[%clk 0:02:39.6]} 9. Qe2 {[%clk 0:03:06.7]} 9... Bb7 {[%clk 0:02:29.1]}
10. e4 {[%clk 0:03:07.9]} 10... Be7 {[%clk 0:02:30.2]} 11. exd5 {[%clk
0:03:03.6]} 11... exd5 {[%clk 0:02:21.9]} 12. O-O {[%clk 0:03:02.1]} 12... cxd4
{[%clk 0:02:18.5]} 13. Nxd4 {[%clk 0:02:59.1]} 13... Nxd4 {[%clk 0:02:18.8]} 14.
cxd4 {[%clk 0:03:01]} 14... Re8 {[%clk 0:02:17]} 15. Bh4 {[%clk 0:02:46.2]}
15... Ne4 {[%clk 0:02:15]} 16. Bxe7 {[%clk 0:02:46]} 16... Rxe7 {[%clk
0:02:15.3]} 17. Qd1 {[%clk 0:02:42.6]} 17... Qd6 {[%clk 0:02:08.5]} 18. f3
{[%clk 0:02:33.8]} 18... Nxd2 {[%clk 0:01:38.3]} 19. Qxd2 {[%clk 0:02:34.6]}
19... Rae8 {[%clk 0:01:40]} 20. g3 {[%clk 0:02:16.9]} 20... Qf6 {[%clk 0:01:32]}
21. Kg2 {[%clk 0:02:11.2]} 21... g6 {[%clk 0:01:29]} 22. Bb5 {[%clk 0:02:06.8]}
22... Bc6 {[%clk 0:01:26.5]} 23. a4 {[%clk 0:01:53.8]} 23... Bxb5 {[%clk
0:01:26.9]} 24. Rf2 {[%clk 0:01:48.3]} 24... Re2 {[%clk 0:01:21.8]} 0-1

[Event "*** Titled Tuesday Blitz"]
[Site "Chess.com"]
[Date "2019.02.05"]
[Round "2"]
[White "Mbneu"]
[Black "PawnEatingZombie"]
[Result "1-0"]
[WhiteElo "2246"]
[BlackElo "2132"]
[TimeControl "180+2"]
[EndTime "13:19:16 PST"]
[Termination "Mbneu won by resignation"]

1. d4 {[%clk 0:03:01.9]} 1... d5 {[%clk 0:03:00.7]} 2. c4 {[%clk 0:03:01.9]}
2... e6 {[%clk 0:03:01.9]} 3. Nc3 {[%clk 0:03:02.1]} 3... Bb4 {[%clk 0:03:02.8]}
4. Nf3 {[%clk 0:03:01.8]} 4... dxc4 {[%clk 0:03:03]} 5. e4 {[%clk 0:03:02]} 5...
b5 {[%clk 0:03:03.2]} 6. Be2 {[%clk 0:02:58.3]} 6... Bb7 {[%clk 0:03:02.9]} 7.
Qc2 {[%clk 0:02:56.5]} 7... Nf6 {[%clk 0:02:59.1]} 8. e5 {[%clk 0:02:49.5]} 8...
Nd5 {[%clk 0:02:58]} 9. O-O {[%clk 0:02:48.3]} 9... a6 {[%clk 0:02:56.4]} 10. a3
{[%clk 0:02:48.9]} 10... Be7 {[%clk 0:02:55.6]} 11. Nd2 {[%clk 0:02:47.7]} 11...
O-O {[%clk 0:02:52.3]} 12. Nde4 {[%clk 0:02:47.4]} 12... h6 {[%clk 0:02:50.5]}
13. g4 {[%clk 0:02:46.4]} 13... Nd7 {[%clk 0:02:42.2]} 14. f4 {[%clk 0:02:46.4]}
14... f5 {[%clk 0:02:33.6]} 15. exf6 {[%clk 0:02:32]} 15... N7xf6 {[%clk
0:02:30.3]} 16. Bf3 {[%clk 0:02:22.3]} 16... Nxe4 {[%clk 0:02:02.8]} 17. Qxe4
{[%clk 0:02:16.7]} 17... Nxc3 {[%clk 0:01:39.5]} 18. Qxe6+ {[%clk 0:02:12.5]}
18... Kh8 {[%clk 0:01:38.3]} 19. Bxb7 {[%clk 0:02:13.6]} 19... Qxd4+ {[%clk
0:01:17.9]} 20. Be3 {[%clk 0:02:12.7]} 20... Ne2+ {[%clk 0:01:18.6]} 21. Kh1
{[%clk 0:02:00.4]} 21... Qd6 {[%clk 0:00:59.8]} 22. Qxd6 {[%clk 0:01:58.2]}
22... Bxd6 {[%clk 0:01:00.7]} 23. Bxa8 {[%clk 0:01:55.2]} 23... Rxa8 {[%clk
0:00:56.3]} 24. Rae1 {[%clk 0:01:55.9]} 1-0

[Event "*** Titled Tuesday Blitz"]
[Site "Chess.com"]
[Date "2019.02.05"]
[Round "2"]
[White "Astaneh"]
[Black "ezkybel"]
[Result "1-0"]
[WhiteElo "2463"]
[BlackElo "2273"]
[TimeControl "180+2"]
[EndTime "13:19:23 PST"]
[Termination "Astaneh won by checkmate"]

1. Nf3 {[%clk 0:02:55]} 1... Nf6 {[%clk 0:02:57.4]} 2. b3 {[%clk 0:02:55.7]}
2... g6 {[%clk 0:02:57.8]} 3. Bb2 {[%clk 0:02:57.3]} 3... Bg7 {[%clk 0:02:59.3]}
4. g3 {[%clk 0:02:58.9]} 4... O-O {[%clk 0:03:00.2]} 5. Bg2 {[%clk 0:03:00.4]}
5... d6 {[%clk 0:03:01.4]} 6. d4 {[%clk 0:03:00.5]} 6... c6 {[%clk 0:03:02.5]}
7. O-O {[%clk 0:03:01.4]} 7... Na6 {[%clk 0:03:03.5]} 8. c4 {[%clk 0:03:01.9]}
8... Nc7 {[%clk 0:03:04.6]} 9. Nc3 {[%clk 0:03:02.8]} 9... Bg4 {[%clk
0:03:02.9]} 10. h3 {[%clk 0:03:03.4]} 10... Bd7 {[%clk 0:03:00.6]} 11. e4 {[%clk
0:03:04.2]} 11... d5 {[%clk 0:02:51.7]} 12. e5 {[%clk 0:03:04.2]} 12... Ne4
{[%clk 0:02:51.1]} 13. Nxe4 {[%clk 0:03:05.4]} 13... dxe4 {[%clk 0:02:52.2]} 14.
Ng5 {[%clk 0:03:07.1]} 14... Qc8 {[%clk 0:02:18.7]} 15. Kh2 {[%clk 0:03:08]}
15... f5 {[%clk 0:01:58.7]} 16. exf6 {[%clk 0:03:08.8]} 16... exf6 {[%clk
0:01:57.5]} 17. Nxe4 {[%clk 0:03:10.2]} 17... f5 {[%clk 0:01:57]} 18. Nd6 {[%clk
0:03:11.2]} 18... Qb8 {[%clk 0:01:51.7]} 19. Re1 {[%clk 0:03:09.4]} 19... f4
{[%clk 0:01:44.2]} 20. Re7 {[%clk 0:03:03.4]} 20... Qd8 {[%clk 0:01:39]} 21.
Rxg7+ {[%clk 0:03:04.6]} 21... Kxg7 {[%clk 0:01:39.8]} 22. d5+ {[%clk
0:03:06.5]} 22... Kh6 {[%clk 0:01:13.5]} 23. Qd4 {[%clk 0:03:07.4]} 23... Qe7
{[%clk 0:01:10.8]} 24. Re1 {[%clk 0:02:47.6]} 24... Qxe1 {[%clk 0:00:12.3]} 25.
Qg7+ {[%clk 0:02:46.7]} 25... Kg5 {[%clk 0:00:12]} 26. h4+ {[%clk 0:02:47.6]}
26... Kg4 {[%clk 0:00:11.3]} 27. f3+ {[%clk 0:02:48.6]} 27... Kh5 {[%clk
0:00:10.5]} 28. Qxh7# {[%clk 0:02:49.6]} 1-0

[Event "*** Titled Tuesday Blitz"]
[Site "Chess.com"]
[Date "2019.02.05"]
[Round "2"]
[White "Ar4uha"]
[Black "Th3ChessViking"]
[Result "1-0"]
[WhiteElo "2516"]
[BlackElo "2459"]
[TimeControl "180+2"]
[EndTime "13:19:32 PST"]
[Termination "Ar4uha won by resignation"]

1. e4 {[%clk 0:03:00.2]} 1... e6 {[%clk 0:02:59.8]} 2. d4 {[%clk 0:03:00.5]}
2... d5 {[%clk 0:02:59.6]} 3. Bd3 {[%clk 0:03:01.9]} 3... Nf6 {[%clk 0:02:48.7]}
4. e5 {[%clk 0:03:02]} 4... Nfd7 {[%clk 0:02:49.3]} 5. c3 {[%clk 0:03:03.4]}
5... c5 {[%clk 0:02:48.5]} 6. Nf3 {[%clk 0:03:05.3]} 6... Nc6 {[%clk 0:02:49.5]}
7. O-O {[%clk 0:03:03.8]} 7... g6 {[%clk 0:02:48.2]} 8. a3 {[%clk 0:03:00]} 8...
Bg7 {[%clk 0:02:47]} 9. b4 {[%clk 0:02:57.9]} 9... cxd4 {[%clk 0:02:44.9]} 10.
cxd4 {[%clk 0:02:59.8]} 10... O-O {[%clk 0:02:45.9]} 11. Bb2 {[%clk 0:02:59.4]}
11... f6 {[%clk 0:02:45.6]} 12. exf6 {[%clk 0:03:01.3]} 12... Nxf6 {[%clk
0:02:46]} 13. Nbd2 {[%clk 0:03:03.2]} 13... Nh5 {[%clk 0:02:45]} 14. g3 {[%clk
0:03:02.9]} 14... Qf6 {[%clk 0:02:42.4]} 15. Ne5 {[%clk 0:02:58.3]} 15... Nd8
{[%clk 0:01:41.4]} 16. f4 {[%clk 0:02:58.4]} 16... Nf7 {[%clk 0:01:42]} 17. Be2
{[%clk 0:02:58.5]} 17... Nd6 {[%clk 0:01:28.4]} 18. Bxh5 {[%clk 0:02:57.5]}
18... gxh5 {[%clk 0:01:30.3]} 19. Qxh5 {[%clk 0:02:59.4]} 19... Nf5 {[%clk
0:01:29.7]} 20. Ndf3 {[%clk 0:02:53.2]} 20... b6 {[%clk 0:01:27.5]} 21. Rac1
{[%clk 0:02:52]} 21... Rd8 {[%clk 0:01:17.4]} 22. Rc7 {[%clk 0:02:47.6]} 22...
Nd6 {[%clk 0:01:10]} 23. Ng5 {[%clk 0:02:22.9]} 23... h6 {[%clk 0:01:10.1]} 24.
Ngf7 {[%clk 0:02:23.5]} 24... Ba6 {[%clk 0:01:04.7]} 25. Rfc1 {[%clk 0:02:15.2]}
1-0

[Event "*** Titled Tuesday Blitz"]
[Site "Chess.com"]
[Date "2019.02.05"]
[Round "2"]
[White "Last7Samurai"]
[Black "TrimitziosP7"]
[Result "0-1"]
[WhiteElo "2702"]
[BlackElo "2691"]
[TimeControl "180+2"]
[EndTime "13:19:36 PST"]
[Termination "TrimitziosP7 won by resignation"]

1. d4 {[%clk 0:03:01.9]} 1... Nf6 {[%clk 0:02:59.5]} 2. Bf4 {[%clk 0:03:02]}
2... c5 {[%clk 0:02:50.6]} 3. d5 {[%clk 0:02:59.3]} 3... b5 {[%clk 0:02:45.7]}
4. a4 {[%clk 0:02:58.8]} 4... Bb7 {[%clk 0:02:40.7]} 5. c4 {[%clk 0:02:52.2]}
5... bxc4 {[%clk 0:02:37.3]} 6. Nc3 {[%clk 0:02:52.4]} 6... d6 {[%clk
0:02:36.2]} 7. e4 {[%clk 0:02:52.6]} 7... Ba6 {[%clk 0:02:36]} 8. Nf3 {[%clk
0:02:42.7]} 8... g6 {[%clk 0:02:34.6]} 9. Nd2 {[%clk 0:02:41.3]} 9... Bg7 {[%clk
0:02:33.9]} 10. Bxc4 {[%clk 0:02:41.6]} 10... Bxc4 {[%clk 0:02:32.4]} 11. Nxc4
{[%clk 0:02:43.5]} 11... Nbd7 {[%clk 0:02:34.3]} 12. O-O {[%clk 0:02:43.4]}
12... O-O {[%clk 0:02:34.7]} 13. h3 {[%clk 0:02:39.5]} 13... Rb8 {[%clk
0:02:35.1]} 14. Qe2 {[%clk 0:02:35.4]} 14... Nb6 {[%clk 0:02:34.8]} 15. Ne3
{[%clk 0:02:20.4]} 15... Nfd7 {[%clk 0:02:25.2]} 16. Nb5 {[%clk 0:02:10.7]}
16... Rb7 {[%clk 0:02:19.5]} 17. a5 {[%clk 0:02:05.2]} 17... Nc8 {[%clk
0:02:20.2]} 18. a6 {[%clk 0:02:05.1]} 18... Rb8 {[%clk 0:02:20.1]} 19. Nc3
{[%clk 0:01:51.1]} 19... Ncb6 {[%clk 0:02:15.2]} 20. Ra2 {[%clk 0:01:43.1]}
20... Nf6 {[%clk 0:02:12.1]} 21. Nc4 {[%clk 0:01:36.4]} 21... Nxc4 {[%clk
0:02:08.9]} 22. Qxc4 {[%clk 0:01:38.3]} 22... Rb4 {[%clk 0:02:09.7]} 23. Qe2
{[%clk 0:01:34]} 23... Qb6 {[%clk 0:02:08.3]} 24. Bc1 {[%clk 0:01:25.1]} 24...
Nd7 {[%clk 0:02:06.7]} 25. Nd1 {[%clk 0:01:15.6]} 25... Rb8 {[%clk 0:02:05.3]}
26. Ne3 {[%clk 0:01:15.5]} 26... Rxe4 {[%clk 0:02:04]} 27. Re1 {[%clk 0:01:05]}
27... Qb3 {[%clk 0:02:02.3]} 28. Ra3 {[%clk 0:01:04.7]} 28... Qb5 {[%clk
0:02:02.2]} 29. Qf3 {[%clk 0:01:04.4]} 29... f5 {[%clk 0:02:00.6]} 30. Re2
{[%clk 0:01:03.1]} 30... Ne5 {[%clk 0:01:59.6]} 0-1

[Event "*** Titled Tuesday Blitz"]
[Site "Chess.com"]
[Date "2019.02.05"]
[Round "2"]
[White "MathiasWomacka"]
[Black "m3alam"]
[Result "1-0"]
[WhiteElo "2226"]
[BlackElo "2150"]
[TimeControl "180+2"]
[EndTime "13:19:37 PST"]
[Termination "MathiasWomacka won by resignation"]

1. e4 {[%clk 0:03:01.1]} 1... c6 {[%clk 0:03:01.2]} 2. d4 {[%clk 0:03:01.5]}
2... d5 {[%clk 0:03:02.8]} 3. Nd2 {[%clk 0:03:03.1]} 3... g6 {[%clk 0:03:00]} 4.
h3 {[%clk 0:03:02.7]} 4... Bg7 {[%clk 0:03:01.2]} 5. Ngf3 {[%clk 0:03:03.7]}
5... dxe4 {[%clk 0:02:55]} 6. Nxe4 {[%clk 0:03:05.6]} 6... Nd7 {[%clk
0:02:53.4]} 7. Bc4 {[%clk 0:03:02.3]} 7... Ngf6 {[%clk 0:02:51.8]} 8. Nxf6+
{[%clk 0:03:02.9]} 8... Nxf6 {[%clk 0:02:51.7]} 9. O-O {[%clk 0:03:03.7]} 9...
O-O {[%clk 0:02:51.6]} 10. Re1 {[%clk 0:03:04.8]} 10... Bf5 {[%clk 0:02:49.8]}
11. Ne5 {[%clk 0:02:52.5]} 11... Nd5 {[%clk 0:02:42]} 12. c3 {[%clk 0:02:47.2]}
12... h5 {[%clk 0:02:36.5]} 13. Qf3 {[%clk 0:02:43.9]} 13... a5 {[%clk
0:02:18.3]} 14. a4 {[%clk 0:02:39.4]} 14... Qd6 {[%clk 0:02:10.6]} 15. Bd2
{[%clk 0:02:27.7]} 15... Rae8 {[%clk 0:02:07.6]} 16. Rad1 {[%clk 0:02:23.3]}
16... Qc7 {[%clk 0:01:52.4]} 17. Bxd5 {[%clk 0:02:04.2]} 17... cxd5 {[%clk
0:01:52.4]} 18. Qxd5 {[%clk 0:02:06.1]} 18... Bc2 {[%clk 0:01:47]} 19. Ra1
{[%clk 0:02:05.8]} 19... e6 {[%clk 0:01:37]} 20. Qb5 {[%clk 0:01:53.7]} 20...
Rd8 {[%clk 0:01:31.4]} 21. Bf4 {[%clk 0:01:42.8]} 21... Rd5 {[%clk 0:01:29.8]}
22. Qe2 {[%clk 0:01:38.3]} 1-0

[Event "*** Titled Tuesday Blitz"]
[Site "Chess.com"]
[Date "2019.02.05"]
[Round "2"]
[White "mishanick"]
[Black "FearNoEvil12"]
[Result "1-0"]
[WhiteElo "3019"]
[BlackElo "1950"]
[TimeControl "180+2"]
[EndTime "13:19:41 PST"]
[Termination "mishanick won by resignation"]

1. d4 {[%clk 0:02:49.9]} 1... b5 {[%clk 0:02:59.6]} 2. e4 {[%clk 0:02:50.4]}
2... a6 {[%clk 0:02:59.3]} 3. c4 {[%clk 0:02:51]} 3... bxc4 {[%clk 0:02:58.2]}
4. Bxc4 {[%clk 0:02:52.4]} 4... e6 {[%clk 0:02:59.7]} 5. Nc3 {[%clk 0:02:53.5]}
5... Bb7 {[%clk 0:03:01]} 6. Nf3 {[%clk 0:02:54.9]} 6... Nf6 {[%clk 0:03:01.5]}
7. e5 {[%clk 0:02:55.5]} 7... Ne4 {[%clk 0:03:02.4]} 8. O-O {[%clk 0:02:56.5]}
8... Nxc3 {[%clk 0:03:03.1]} 9. bxc3 {[%clk 0:02:58.4]} 9... Be7 {[%clk
0:03:02.7]} 10. Qd3 {[%clk 0:02:55.2]} 10... h6 {[%clk 0:03:01.9]} 11. Bf4
{[%clk 0:02:55.1]} 11... d6 {[%clk 0:03:02.6]} 12. Rfe1 {[%clk 0:02:54.1]} 12...
Nd7 {[%clk 0:03:01.5]} 13. Rad1 {[%clk 0:02:28.6]} 13... d5 {[%clk 0:02:53.6]}
14. Bb3 {[%clk 0:02:28.5]} 14... c5 {[%clk 0:02:54.6]} 15. Ba4 {[%clk
0:02:29.2]} 15... Qc7 {[%clk 0:02:53.1]} 16. c4 {[%clk 0:02:13.8]} 16... Bc6
{[%clk 0:02:45.9]} 17. Bb3 {[%clk 0:01:47.1]} 17... dxc4 {[%clk 0:02:37.2]} 18.
Bxc4 {[%clk 0:01:49]} 18... O-O {[%clk 0:02:23.1]} 19. d5 {[%clk 0:01:48.5]}
19... exd5 {[%clk 0:02:22.3]} 20. Bxd5 {[%clk 0:01:49]} 20... Bxd5 {[%clk
0:02:21.9]} 21. Qxd5 {[%clk 0:01:50.9]} 21... Nb6 {[%clk 0:02:21.9]} 22. Qe4
{[%clk 0:01:51.1]} 22... Rad8 {[%clk 0:02:07.7]} 23. e6 {[%clk 0:01:51.9]} 23...
Qc8 {[%clk 0:01:55.4]} 24. exf7+ {[%clk 0:01:48.2]} 24... Rxf7 {[%clk
0:01:56.4]} 25. Ne5 {[%clk 0:01:48.7]} 25... Rf6 {[%clk 0:01:47]} 26. Rxd8+
{[%clk 0:01:44.1]} 26... Bxd8 {[%clk 0:01:46.3]} 27. Bg3 {[%clk 0:01:40.2]}
27... Bc7 {[%clk 0:01:41.9]} 28. Ng4 {[%clk 0:01:39.8]} 28... Rf8 {[%clk
0:01:31]} 29. Nxh6+ {[%clk 0:01:39.5]} 29... gxh6 {[%clk 0:01:28.6]} 30. Qg6+
{[%clk 0:01:40.1]} 30... Kh8 {[%clk 0:01:29.3]} 31. Qxh6+ {[%clk 0:01:42]} 31...
Kg8 {[%clk 0:01:30.1]} 32. Qg6+ {[%clk 0:01:43.9]} 32... Kh8 {[%clk 0:01:31]}
33. Re7 {[%clk 0:01:44.7]} 1-0

[Event "*** Titled Tuesday Blitz"]
[Site "Chess.com"]
[Date "2019.02.05"]
[Round "2"]
[White "Kawhi_Leonard2"]
[Black "Shivagami"]
[Result "1-0"]
[WhiteElo "2242"]
[BlackElo "2136"]
[TimeControl "180+2"]
[EndTime "13:19:51 PST"]
[Termination "Kawhi_Leonard2 won by resignation"]

1. e4 {[%clk 0:03:01.9]} 1... e5 {[%clk 0:02:59.6]} 2. Nf3 {[%clk 0:03:02.3]}
2... Nc6 {[%clk 0:03:01]} 3. Bb5 {[%clk 0:03:03]} 3... a6 {[%clk 0:03:01]} 4.
Bxc6 {[%clk 0:03:04.2]} 4... dxc6 {[%clk 0:03:01.1]} 5. O-O {[%clk 0:03:06.1]}
5... Bg4 {[%clk 0:02:58.2]} 6. h3 {[%clk 0:03:06.9]} 6... h5 {[%clk 0:02:57.4]}
7. d3 {[%clk 0:03:07.8]} 7... Qf6 {[%clk 0:02:56.4]} 8. Be3 {[%clk 0:03:08.8]}
8... Bxf3 {[%clk 0:02:43.4]} 9. Qxf3 {[%clk 0:03:10.7]} 9... Qxf3 {[%clk
0:02:44]} 10. gxf3 {[%clk 0:03:11.9]} 10... Ne7 {[%clk 0:02:43.1]} 11. f4 {[%clk
0:03:11]} 11... Ng6 {[%clk 0:02:28]} 12. fxe5 {[%clk 0:03:05.9]} 12... Nxe5
{[%clk 0:02:19.6]} 13. f4 {[%clk 0:03:06.9]} 13... Ng6 {[%clk 0:02:20]} 14. Nd2
{[%clk 0:03:06.3]} 14... O-O-O {[%clk 0:02:13.6]} 15. Kh1 {[%clk 0:03:00.7]}
15... Be7 {[%clk 0:02:04.5]} 16. Rg1 {[%clk 0:02:47.9]} 16... Rhg8 {[%clk
0:01:51.6]} 17. Nf3 {[%clk 0:02:33.4]} 17... Nh4 {[%clk 0:01:27.2]} 18. Ne5
{[%clk 0:02:28]} 18... f6 {[%clk 0:01:10.1]} 19. Ng6 {[%clk 0:02:27]} 19... Nxg6
{[%clk 0:01:10.9]} 20. Rxg6 {[%clk 0:02:28]} 20... Bd6 {[%clk 0:01:05]} 21. Rag1
{[%clk 0:02:27.8]} 21... Rd7 {[%clk 0:00:42]} 22. Rxf6 {[%clk 0:02:27.6]} 22...
Re8 {[%clk 0:00:32.6]} 23. Rfg6 {[%clk 0:02:27.2]} 23... Rf8 {[%clk 0:00:32.8]}
24. e5 {[%clk 0:02:12.7]} 24... Bb4 {[%clk 0:00:24.6]} 25. Rxg7 {[%clk
0:02:13.3]} 1-0

[Event "*** Titled Tuesday Blitz"]
[Site "Chess.com"]
[Date "2019.02.05"]
[Round "2"]
[White "KazakhFighter04"]
[Black "MITerryble"]
[Result "0-1"]
[WhiteElo "2652"]
[BlackElo "2792"]
[TimeControl "180+2"]
[EndTime "13:20:07 PST"]
[Termination "MITerryble won by resignation"]

1. e4 {[%clk 0:03:01.9]} 1... e6 {[%clk 0:03:00.3]} 2. d4 {[%clk 0:03:02.7]}
2... d5 {[%clk 0:03:01.5]} 3. Nc3 {[%clk 0:03:03.7]} 3... Nf6 {[%clk 0:03:02.7]}
4. e5 {[%clk 0:03:03.1]} 4... Nfd7 {[%clk 0:03:01]} 5. f4 {[%clk 0:03:04]} 5...
c5 {[%clk 0:03:01.5]} 6. Nf3 {[%clk 0:03:03.4]} 6... Nc6 {[%clk 0:03:02.8]} 7.
Be3 {[%clk 0:03:01.5]} 7... Be7 {[%clk 0:03:04.1]} 8. Qd2 {[%clk 0:02:56.7]}
8... O-O {[%clk 0:03:03.5]} 9. dxc5 {[%clk 0:02:53.3]} 9... Nxc5 {[%clk
0:03:02]} 10. Qf2 {[%clk 0:02:45.7]} 10... Qa5 {[%clk 0:03:00.8]} 11. O-O-O
{[%clk 0:02:34.1]} 11... Ne4 {[%clk 0:03:00.1]} 12. Nxe4 {[%clk 0:02:34.7]}
12... dxe4 {[%clk 0:03:01.4]} 13. Nd2 {[%clk 0:02:36.2]} 13... Qxa2 {[%clk
0:02:59.3]} 14. Nb3 {[%clk 0:02:37.7]} 14... a5 {[%clk 0:02:49.5]} 15. Bc5
{[%clk 0:01:27.4]} 15... a4 {[%clk 0:02:41.6]} 16. Nd2 {[%clk 0:01:24.6]} 16...
a3 {[%clk 0:02:09.3]} 17. bxa3 {[%clk 0:01:23.2]} 17... Rxa3 {[%clk 0:02:04.4]}
18. Nb1 {[%clk 0:01:03.9]} 18... e3 {[%clk 0:02:02.5]} 19. Bxe3 {[%clk
0:00:56.5]} 19... Qa1 {[%clk 0:01:46.1]} 20. Bc5 {[%clk 0:00:50.4]} 20... Ra2
{[%clk 0:01:26.3]} 21. Bxe7 {[%clk 0:00:41.1]} 21... Qb2+ {[%clk 0:01:26]} 22.
Kd2 {[%clk 0:00:41.6]} 22... Qxc2+ {[%clk 0:01:27]} 0-1

[Event "*** Titled Tuesday Blitz"]
[Site "Chess.com"]
[Date "2019.02.05"]
[Round "2"]
[White "x-5963514717"]
[Black "Genghis_K"]
[Result "0-1"]
[WhiteElo "2453"]
[BlackElo "2799"]
[TimeControl "180+2"]
[EndTime "13:20:15 PST"]
[Termination "Genghis_K won by resignation"]

1. Nf3 {[%clk 0:02:59.7]} 1... Nf6 {[%clk 0:03:00.4]} 2. g3 {[%clk 0:03:00.8]}
2... g6 {[%clk 0:03:01.7]} 3. Bg2 {[%clk 0:03:02.5]} 3... Bg7 {[%clk 0:03:03.3]}
4. O-O {[%clk 0:03:04.4]} 4... O-O {[%clk 0:03:04.9]} 5. d4 {[%clk 0:03:06.3]}
5... d6 {[%clk 0:03:06.4]} 6. b3 {[%clk 0:03:07.6]} 6... e5 {[%clk 0:03:03.8]}
7. dxe5 {[%clk 0:03:08.1]} 7... dxe5 {[%clk 0:03:04.9]} 8. Ba3 {[%clk
0:03:07.5]} 8... Qxd1 {[%clk 0:02:59.5]} 9. Rxd1 {[%clk 0:03:08.1]} 9... Re8
{[%clk 0:02:58.9]} 10. Nc3 {[%clk 0:02:56.1]} 10... e4 {[%clk 0:02:56.1]} 11.
Nd4 {[%clk 0:02:50.1]} 11... e3 {[%clk 0:02:56.8]} 12. fxe3 {[%clk 0:02:44]}
12... c6 {[%clk 0:02:51.4]} 13. h3 {[%clk 0:02:33.5]} 13... Rxe3 {[%clk
0:02:47.8]} 14. Rd3 {[%clk 0:02:27.3]} 14... Rxd3 {[%clk 0:02:33.9]} 15. exd3
{[%clk 0:02:29.2]} 15... Ne4 {[%clk 0:02:35.2]} 16. Nce2 {[%clk 0:01:20.8]}
16... Nxg3 {[%clk 0:02:35.3]} 17. Re1 {[%clk 0:01:13]} 17... Nxe2+ {[%clk
0:02:30.1]} 18. Nxe2 {[%clk 0:01:14.9]} 18... Na6 {[%clk 0:02:31.3]} 19. Nf4
{[%clk 0:01:12.3]} 19... Bd7 {[%clk 0:02:30.2]} 20. Bd6 {[%clk 0:00:55.9]} 20...
Bf8 {[%clk 0:02:28.8]} 21. Be5 {[%clk 0:00:54.5]} 21... Re8 {[%clk 0:02:26.4]}
22. Kf1 {[%clk 0:00:46.5]} 22... Bg7 {[%clk 0:02:15.3]} 23. d4 {[%clk
0:00:36.8]} 23... Bxe5 {[%clk 0:02:08.3]} 24. dxe5 {[%clk 0:00:38.7]} 24... Bf5
{[%clk 0:02:09.8]} 25. c3 {[%clk 0:00:38.4]} 25... Nc5 {[%clk 0:02:07.2]} 26.
Rd1 {[%clk 0:00:24.3]} 26... Rxe5 {[%clk 0:02:06.7]} 27. b4 {[%clk 0:00:25.9]}
27... Ne4 {[%clk 0:02:01.9]} 28. Rd8+ {[%clk 0:00:26.5]} 28... Kg7 {[%clk
0:02:02.9]} 29. Bxe4 {[%clk 0:00:27.2]} 29... Rxe4 {[%clk 0:02:04.4]} 0-1